[Event "BL 2024-25"]
[Site "Austria"]
[Date "2024.10.10"]
[Round "2.1"]
[White "Demchenko, Anton"]
[Black "Dragnev, Valentin"]
[Result "1-0"]
[Annotator "TA"]
[ECO "C54"]
[WhiteElo "2602"]
[BlackElo "2562"]
[PlyCount "73"]
[EventDate "2024.08.28"]
[EventType "team-tourn"]
[EventCountry "AUT"]
[SourceTitle "playchess.com"]
[Source "ChessBase"]
[SourceQuality "1"]
[WhiteTeam "Frauental"]
[BlackTeam "Ottakring"]
[TimeControl "40/5400+30:1800+30"]

{[%evp 11,73,14,31,12,19,16,28,15,29,21,27,0,10,0,0,-15,0,-25,-3,-12,0,0,0,-59,-32,-35,-40,-27,-21,-39,-13,-34,0,0,0,-7,0,4,0,27,107,102,104,105,98,30,375,358,375,345,473,481,436,512,517,512,509,512,507,523,5139,5017,1720,1045]} 1. e4 {[%emt 0:00:02]} e5 {[%emt 0:00:15]} 2. Nf3 {[%emt 0:00:05]} Nc6 {[%emt 0:00:09]} 3. Bc4 {[%emt 0:00:06]} Bc5 {[%emt 0:00:11]} 4. c3 {[%emt 0:00:22]} Nf6 {[%emt 0:00:12]} 5. d3 {[%emt 0:00:05]} a6 {[%emt 0:01:52]} 6. O-O {[%emt 0:01:23]} Ba7 {[%emt 0:00:57]} 7. Nbd2 {[%emt 0:00:56]} O-O {[%emt 0:01:45]} 8. Re1 {[%emt 0:01:10]} Re8 {[%emt 0:14:12]} 9. a4 {[%emt 0:01:55] White has an edge.} d6 {[%emt 0:02:00]} 10. Nf1 {[%emt 0:01:03]} Be6 {[%emt 0:01:42]} 11. Bg5 {[%emt 0:17:12]} h6 {[%emt 0:02:33]} 12. Bh4 {[%emt 0:01:46]} Bxc4 {[%emt 0:11:50]} 13. dxc4 {[%emt 0:00:01]} Re6 {[%emt 0:00:23]} 14. Qc2 {[%emt 0:08:08]} g5 {[%emt 0:07:30]} 15. Bg3 {[%emt 0:00:25]} Ne7 {[%emt 0:00:59]} 16. Ne3 {[%emt 0:06:32]} Bxe3 {[%emt 0:00:49]} 17. fxe3 {[%emt 0:01:03]} (17. Rxe3 $11 Ng6 18. Ree1) 17... Qd7 {[%emt 0:01:06]} 18. a5 {[%emt 0:02:13]} Qc6 {[%emt 0:02:48][%csl LRc4,LRe4]} 19. Nd2 {[%emt 0:00:02]} Rf8 {[%emt 0:00:34]} 20. b4 {[%emt 0:05:55]} Nh5 {[%emt 0:09:44]} 21. Rf1 {[%emt 0:02:22]} Ng7 {[%emt 0:01:49]} 22. Qd3 {[%emt 0:00:35]} Qe8 {[%emt 0:08:49]} 23. Rab1 {[%emt 0:01:57]} Kh8 {[%emt 0:05:20]} 24. c5 {[%emt 0:07:24]} dxc5 {[%emt 0:05:53]} 25. Nb3 {[%emt 0:00:35]} c4 {[%emt 0:06:40]} 26. Qxc4 $16 {[%emt 0:00:06]} Rc6 {[%emt 0:00:11]} 27. Qe2 {[%emt 0:02:11] White has more active pieces.} Ng6 {[%emt 0:02:25][%cal Og7e6]} 28. b5 {[%emt 0:01:29]} (28. c4 $16) 28... Rxc3 $2 {[%emt 0:02:10][%mdl 8192] [#] This move loses the game for Black.} (28... axb5 $1 $11 {and Black stays safe.} 29. Qxb5 b6) 29. Be1 $18 {[%emt 0:00:53]} ({Weaker is} 29. bxa6 bxa6 30. Be1 (30. Qxa6 Qa4 $11) 30... Rc6 $14) 29... Rxb3 {[%emt 0:00:58]} 30. Rxb3 {[%emt 0:00:06]} axb5 {[%emt 0:00:29]} 31. Qxb5 {[%emt 0:00:59] White is clearly winning.} Qxb5 {[%emt 0:00:44]} 32. Rxb5 {[%emt 0:00:01]} b6 {[%emt 0:00:13]} 33. axb6 {[%emt 0:02:04]} cxb6 {[%emt 0:00:05]} 34. Bb4 {[%emt 0:00:15]} Rc8 {[%emt 0:00:28]} 35. Rxf7 {[%emt 0:00:21]} Rc4 {[%emt 0:00:21]} 36. Rxb6 {[%emt 0:00:43]} Kg8 {[%emt 0:00:10]} 37. Rff6 {[%emt 0:01:36] Weighted Error Value: White=0.11 (very precise) /Black=0.39.  Loses game:     	---       	Black=1      Mistake:       	White=2     	Black=1      Inaccurate:     	White=1     	Black=5      OK:         	White=9     	Black=8      Best:        	White=4     	---} 1-0

[Event "BL 2024-25"]
[Site "Austria"]
[Date "2024.10.10"]
[Round "2.2"]
[White "Papp, Gabor"]
[Black "Krivoborodov, Egor"]
[Result "1/2-1/2"]
[Annotator "TA"]
[ECO "B36"]
[WhiteElo "2508"]
[BlackElo "2555"]
[PlyCount "141"]
[EventDate "2024.08.28"]
[EventType "team-tourn"]
[EventCountry "AUT"]
[SourceTitle "playchess.com"]
[Source "ChessBase"]
[SourceQuality "1"]
[WhiteTeam "Ottakring"]
[BlackTeam "Frauental"]
[TimeControl "40/5400+30:1800+30"]

{[%evp 54,141,0,-10,-28,-20,87,91,85,85,93,82,93,103,105,79,95,31,52,39,37,38,39,0,54,23,115,36,36,33,29,27,34,30,31,30,29,14,15,12,12,8,12,0,0,0,4,5,8,0,0,0,0,0,0,0,0,0,0,0,0,0,1,0,8,0,0,0,8,0,0,0,0,2,15,0,0,0,0,0,0,0,0,0,0,0,0,0,0,0]} 1. e4 {[%emt 0:00:05]} c5 {[%emt 0:00:04]} 2. Nf3 {[%emt 0:00:07]} g6 {[%emt 0:00:04]} 3. d4 {[%emt 0:00:17]} cxd4 {[%emt 0:00:04]} 4. Nxd4 {[%emt 0:00:05]} Nc6 {[%emt 0:00:17]} 5. c4 {[%emt 0:00:28]} Nf6 {[%emt 0:00:26]} 6. Nc3 {[%emt 0:00:09]} Nxd4 {[%emt 0:00:10]} 7. Qxd4 {[%emt 0:00:08]} d6 {[%emt 0:00:03]} 8. Be2 {[%emt 0:00:45]} Bg7 {[%emt 0:00:10]} 9. Be3 {[%emt 0:00:06]} O-O {[%emt 0:00:05]} 10. Qd3 {[%emt 0:01:19]} Nd7 {[%emt 0:19:38] B36: Sicilian: Maroczy Bind: Gurgenidze System.} 11. O-O {[%emt 0:08:54]} Nc5 {[%emt 0:08:01]} 12. Qc2 {[%emt 0:00:25]} Bxc3 {[%emt 0:07:53]} 13. Qxc3 {[%emt 0:01:18]} Nxe4 {[%emt 0:00:15]} 14. Qd4 {[%emt 1:23:24]} Nf6 {[%emt 0:01:42]} 15. Rad1 $146 {[%emt 0:00:00]} ({Predecessor:} 15. Bg5 Qb6 16. Bxf6 exf6 17. Qxf6 Be6 18. Rfd1 Rfe8 19. Kf1 d5 20. Rd2 dxc4 21. Rad1 {0-1 Lee,M (2382)-Belous,V (2518) Seattle Summer 2021 (5)}) 15... b6 {[%emt 0:09:05]} 16. Qh4 {[%emt 0:00:00]} Bb7 {[%emt 0:02:16]} 17. Rd4 {[%emt 0:00:00]} Re8 {[%emt 0:10:44]} 18. Rfd1 {[%emt 0:00:00]} Nd7 {[%emt 0:02:17]} 19. Qh6 {[%emt 0:00:00]} Nf8 {[%emt 0:00:27]} 20. h4 {[%emt 0:00:00]} Ne6 {[%emt 0:03:19]} 21. Rg4 {[%emt 0:00:00]} Ng7 {[%emt 0:00:33]} 22. Bd3 {[%emt 0:00:00]} Qd7 {[%emt 0:01:46]} 23. Rg5 {[%emt 0:00:00]} e5 {[%emt 0:09:36]} 24. h5 {[%emt 0:00:00]} Re6 {[%emt 0:01:35]} 25. hxg6 {[%emt 0:00:00]} fxg6 {[%emt 0:00:27]} 26. Qh3 {[%emt 0:00:00]} Qf7 {[%emt 0:01:45]} 27. Bc2 {[%emt 0:00:00]} Rf6 {[%emt 0:02:25]} 28. b4 {[%emt 0:00:00]} Re8 {[%emt 0:05:13]} (28... Qxc4 $2 29. Bb3 $18) 29. Qh4 {[%emt 0:00:00]} Ne6 {[%emt 0:01:22] [#]} (29... Ree6 $11) 30. c5 $1 $16 {[%emt 0:00:00]} bxc5 {[%emt 0:09:41]} (30... dxc5 $2 31. Rxe5 Bc8 32. bxc5 $18) 31. bxc5 {[%emt 0:00:00]} Nxg5 {[%emt 0:01:05]} (31... Nxc5 $2 32. Bxc5 d5 33. Bb3 $18 (33. Bxa7 Ba6 $18)) 32. Bxg5 {[%emt 0:00:00]} Rf4 {[%emt 0:01:42]} 33. Bxf4 {[%emt 0:00:00]} Qxf4 {[%emt 0:00:02]} 34. Qxf4 {[%emt 0:00:00]} exf4 {[%emt 0:00:01]} 35. Rxd6 {[%emt 0:00:00]} (35. cxd6 $16 {Hoping for Ba4.} Kf7 36. d7) 35... Be4 {[%emt 0:02:49]} 36. Bb3+ {[%emt 0:00:00]} Kg7 {[%emt 0:00:45]} 37. Rd7+ {[%emt 0:00:00]} Kf6 {[%emt 0:00:05]} 38. c6 {[%emt 0:04:09]} (38. Rxa7 Rc8 $16) 38... Bf5 {[%emt 0:00:53]} (38... Re7 $11) 39. Rxa7 {[%emt 0:00:37]} Re1+ {[%emt 0:00:13]} 40. Kh2 {[%emt 0:00:01]} Rc1 {[%emt 0:00:01]} 41. Rf7+ {[%emt 0:20:31]} Ke5 {[%emt 0:04:05]} 42. Rxh7 {[%emt 0:02:36]} Rxc6 {[%emt 0:00:17]} 43. Rb7 {[%emt 0:00:07]} g5 {[%emt 0:09:15]} 44. Rb5+ {[%emt 0:00:05]} Kf6 {[%emt 0:00:08]} 45. f3 {[%emt 0:01:25]} g4 {[%emt 0:03:03]} 46. fxg4 {[%emt 0:00:40]} Bxg4 {[%emt 0:00:01]} 47. Rb8 {[%emt 0:01:06]} Ke5 {[%emt 0:05:42]} 48. Re8+ {[%emt 0:05:06]} Kd4 {[%emt 0:00:27]} 49. Rg8 {[%emt 0:00:05]} Be2 {[%emt 0:01:30]} 50. Kg1 {[%emt 0:01:11]} Bd3 {[%emt 0:07:39]} 51. Rd8+ {[%emt 0:01:18]} Ke3 {[%emt 0:00:22]} 52. Re8+ {[%emt 0:00:05]} Kd4 {[%emt 0:00:01]} ({But not} 52... Be4 $2 53. Bd5 Rd6 54. Rxe4+ $18 (54. Bxe4 Kd2 $18)) 53. Rd8+ {[%emt 0:01:27]} Ke3 {[%emt 0:00:01]} 54. Re8+ {[%emt 0:04:15]} Kd4 {[%emt 0:00:06]} ({Don't blunder} 54... Be4 $2 55. Bd5 Rd6 56. Rxe4+ $18 (56. Bxe4 Rd1+ 57. Kh2 Rd6 $18)) 55. Kf2 {[%emt 0:00:02]} Be4 {[%emt 0:00:17]} 56. Rf8 {[%emt 0:01:36]} Ke5 {[%emt 0:01:19]} 57. Re8+ {[%emt 0:00:22]} Kd4 {[%emt 0:00:02]} 58. Bd1 {[%emt 0:00:52]} Rc3 {[%emt 0:00:33]} 59. Rd8+ {[%emt 0:00:12]} Ke5 {[%emt 0:00:01]} 60. Re8+ {[%emt 0:00:04]} Kd4 {[%emt 0:00:01]} 61. Rd8+ {[%emt 0:00:13]} Ke5 {[%emt 0:00:06]} 62. Rd2 {[%emt 0:00:07]} Bd5 {[%emt 0:02:41]} 63. Rb2 {[%emt 0:00:52]} Rd3 {[%emt 0:01:40]} 64. Bb3 {[%emt 0:01:10]} Be4 {[%emt 0:00:30]} 65. Bc4 {[%emt 0:00:12]} Rg3 {[%emt 0:00:28]} 66. Bf1 {[%emt 0:00:15]} Ra3 {[%emt 0:00:02]} 67. Rb5+ {[%emt 0:01:54]} Kd4 {[%emt 0:00:24]} 68. Rb4+ {[%emt 0:00:05]} Ke5 {[%emt 0:00:01]} 69. Rb5+ {[%emt 0:00:04]} Kd4 {[%emt 0:00:02]} 70. Rb4+ {[%emt 0:00:05]} Ke5 {[%emt 0:00:02]} 71. Rb5+ {[%emt 0:00:21]} 1/2-1/2

[Event "BL 2024-25"]
[Site "Austria"]
[Date "2024.10.10"]
[Round "2.3"]
[White "Tratar, Marko"]
[Black "Peyrer, Konstantin"]
[Result "0-1"]
[Annotator "TA"]
[ECO "A13"]
[WhiteElo "2374"]
[BlackElo "2415"]
[PlyCount "76"]
[EventDate "2024.08.28"]
[EventType "team-tourn"]
[EventCountry "AUT"]
[SourceTitle "playchess.com"]
[Source "ChessBase"]
[SourceQuality "1"]
[WhiteTeam "Frauental"]
[BlackTeam "Ottakring"]
[TimeControl "40/5400+30:1800+30"]

{[%evp 9,76,12,14,21,21,21,13,24,24,31,28,6,16,6,2,-11,-18,-4,0,0,0,-10,0,-14,0,-43,-22,-88,-59,-40,-44,-114,-89,-99,-57,-81,-39,-56,-36,-21,-17,-72,-70,-66,-67,-62,-53,-87,-102,-127,-131,-160,-156,-153,0,-136,-76,-165,-172,-236,-168,-320,-300,-321,-329,-408,-390,-745,-642]} 1. Nf3 {[%emt 0:00:07]} Nf6 {[%emt 0:00:07]} 2. c4 {[%emt 0:00:26]} e6 {[%emt 0:00:06][%cal Be7e6,Be6d5][%mdl 32]} 3. b3 {[%emt 0:01:39]} d5 {[%emt 0:00:22]} 4. Bb2 {[%emt 0:00:06]} c5 {[%emt 0:00:50]} 5. cxd5 {[%emt 0:01:38]} exd5 {[%emt 0:00:36]} 6. g3 {[%emt 0:00:22]} Nc6 {[%emt 0:01:53]} 7. Bg2 {[%emt 0:00:32]} Bd6 {[%emt 0:01:06]} 8. O-O {[%emt 0:04:04] The position is equal.} Bg4 {[%emt 0:04:22]} 9. d4 {[%emt 0:22:30]} O-O {[%emt 0:02:56]} 10. Ne5 {[%emt 0:44:43] Threatening Nxg4.} Bh5 {[%emt 0:07:10]} 11. Nxc6 {[%emt 0:00:54]} bxc6 {[%emt 0:00:06]} 12. Nd2 {[%emt 0:08:43]} cxd4 {[%emt 0:18:45]} 13. Bxd4 {[%emt 0:00:06]} Re8 {[%emt 0:00:11]} 14. Bf3 {[%emt 0:00:21] Strongly threatening Bxf6.} Bxf3 {[%emt 0:00:29]} 15. Nxf3 {[%emt 0:00:06]} Ne4 {[%emt 0:00:13]} 16. Nd2 {[%emt 0:04:16]} Qd7 {[%emt 0:01:26]} 17. Kg2 {[%emt 0:00:19] Against Qh3+} Ng5 {[%emt 0:00:18] With the idea ...c5.} 18. f4 {[%emt 0:03:12]} (18. Rc1 $11) 18... Ne4 {[%emt 0:02:21]} 19. Rc1 {[%emt 0:00:59]} Rac8 {[%emt 0:05:18]} 20. Rf3 {[%emt 0:02:11]} (20. Nxe4 $15 Rxe4 21. Bf2) 20... c5 {[%emt 0:01:27]} 21. Bb2 {[%emt 0:00:51]} Qf5 {[%emt 0:03:10]} 22. Rc2 {[%emt 0:00:40]} Rcd8 {[%emt 0:04:16] Black is more active.} 23. Rd3 {[%emt 0:01:24]} Nxd2 {[%emt 0:07:16]} 24. Rcxd2 {[%emt 0:00:11]} Qe4+ {[%emt 0:00:13]} 25. Rf3 {[%emt 0:00:08]} (25. Kf2 $1 $11 {keeps the balance.}) 25... Bc7 {[%emt 0:01:10]} 26. Rc2 {[%emt 0:00:22][%cal Ob2d4]} Bb6 {[%emt 0:01:02]} 27. Qd3 {[%emt 0:00:28]} Qe7 {[%emt 0:00:20]} 28. Bc1 {[%emt 0:01:13]} Qb7 {[%emt 0:00:49]} 29. Ba3 {[%emt 0:00:39]} Rc8 {[%emt 0:01:20]} 30. Qb5 {[%emt 0:01:41][%cal Rc2c5]} a6 {[%emt 0:00:31]} 31. Qd3 {[%emt 0:00:03] [#]} Qc6 $2 {[%emt 0:04:04] Inhibits f5.} ({Black should play} 31... Re4 $1 $17 32. Bb2 Rce8) 32. Bb2 {[%emt 0:00:48]} (32. Bxc5 $1 $11 {remains equal.} a5 (32... Bxc5 33. b4 $14) 33. a3) 32... c4 $36 {[%emt 0:00:55][%mdl 2048] Black has strong initiative.} 33. Qd1 {[%emt 0:00:34] [#]} (33. Qc3 $17 {keeps fighting.} f6 34. Qd2) 33... Re4 $1 $19 {[%emt 0:00:30]} 34. Rd2 {[%emt 0:00:27]} (34. Bc1 $142) 34... Rce8 {[%emt 0:00:14][%cal Od5d4] White must now prevent ...d4!} 35. Rc2 $2 {[%emt 0:00:41]} (35. bxc4 dxc4 36. Bc3) 35... Qe6 {[%emt 0:00:46]} 36. e3 {[%emt 0:00:25]} Bxe3 {[%emt 0:01:11]} 37. f5 {[%emt 0:00:19]} Qc6 {[%emt 0:31:11] Hoping for ...Bc5.} 38. Re2 $2 {[%emt 0:00:48] [#]} (38. bxc4 Rxc4 (38... dxc4 $2 39. Bc3 $19) 39. Rxc4 Qxc4 (39... dxc4 $2 40. Bc3 $19) 40. Kh3) 38... Bc1 $1 {[%emt 0:00:00][%mdl 512] Weighted Error Value: White=0.48/Black=0.12 (very precise) .  Mistake:       	White=8     	Black=1      Inaccurate:     	White=2     	Black=3      OK:         	White=7     	Black=14     Best:        	White=1     	Black=2      Strong:       	---       	Black=1} 0-1

[Event "BL 2024-25"]
[Site "Austria"]
[Date "2024.10.10"]
[Round "2.4"]
[White "Froewis, Georg"]
[Black "Mohr, Georg"]
[Result "1-0"]
[Annotator "TA"]
[ECO "A40"]
[WhiteElo "2429"]
[BlackElo "2381"]
[PlyCount "125"]
[EventDate "2024.08.28"]
[EventType "team-tourn"]
[EventCountry "AUT"]
[SourceTitle "playchess.com"]
[Source "ChessBase"]
[SourceQuality "1"]
[WhiteTeam "Ottakring"]
[BlackTeam "Frauental"]
[TimeControl "40/5400+30:1800+30"]

{[%evp 32,125,24,23,37,27,19,20,21,21,25,15,37,23,22,18,35,49,57,1,75,80,116,115,120,125,120,120,139,120,144,146,157,156,154,150,159,151,169,143,147,143,297,280,301,278,343,348,420,467,465,451,433,437,498,490,490,427,418,318,256,243,246,240,239,243,247,214,282,260,322,301,333,333,326,326,333,333,939,712,960,926,1745,2219,29951,29957,6394,6191,5714,2349,29988,29989,29989,29990,29992,29993]} 1. Nf3 {[%emt 0:00:04]} c5 {[%emt 0:00:38]} 2. c4 {[%emt 0:00:04]} g6 {[%emt 0:01:18]} 3. e4 {[%emt 0:00:04]} Bg7 {[%emt 0:00:04]} 4. d4 {[%emt 0:00:03]} cxd4 {[%emt 0:00:06]} 5. Nxd4 {[%emt 0:00:05]} Qb6 {[%emt 0:05:50]} 6. Nb3 {[%emt 0:00:25]} Nc6 {[%emt 0:01:19]} 7. Be3 {[%emt 0:00:50] A40: Unusual replies to 1 d4.} Qd8 {[%emt 0:00:46]} 8. Qd2 {[%emt 0:02:00]} Nf6 {[%emt 0:08:09]} 9. f3 {[%emt 0:00:05]} d6 {[%emt 0:00:29]} 10. Nc3 {[%emt 0:00:21]} O-O {[%emt 0:02:38]} 11. Be2 {[%emt 0:03:16]} a5 {[%emt 0:02:27]} 12. Na4 {[%emt 0:03:09] 12.Nd4 is a critical line.} Be6 {[%emt 0:28:28]} 13. Nb6 {[%emt 0:03:23]} Ra7 {[%emt 0:01:30]} 14. Nd5 {[%emt 0:00:19]} Ra8 {[%emt 0:00:26]} 15. Bb6 {[%emt 0:00:27]} Qc8 $146 {[%emt 0:43:52]} ({Predecessor:} 15... Qd7 16. Nxa5 Nxa5 17. Bxa5 Bxd5 18. cxd5 Nh5 19. Bb6 f5 20. O-O fxe4 21. fxe4 Nf4 22. Rxf4 Rxf4 23. Qxf4 Bxb2 {1-0 Ladopoulos,D (2335)-Gatterer,F (2167) Titled Tuesday intern op 05th Jul Late blitz 2022 (2)}) 16. Nc7 {[%emt 0:03:49]} Rb8 {[%emt 0:00:00]} 17. Nxa5 {[%emt 0:00:06]} Nd7 {[%emt 0:00:00]} 18. Nxc6 {[%emt 0:00:50]} bxc6 {[%emt 0:00:00]} 19. Nxe6 {[%emt 0:00:03]} fxe6 {[%emt 0:00:00]} 20. Bd4 {[%emt 0:02:52]} Bxd4 {[%emt 0:00:00]} 21. Qxd4 {[%emt 0:00:06]} e5 {[%emt 0:00:00]} 22. Qc3 {[%emt 0:01:01]} Qb7 {[%emt 0:00:00]} 23. Rb1 {[%emt 0:00:58]} Qa7 {[%emt 0:00:00]} 24. b4 {[%emt 0:01:34]} Nc5 {[%emt 0:00:00]} 25. Rd1 {[%emt 0:03:26]} (25. a3 $14) 25... Na4 {[%emt 0:00:00]} (25... Ne6 $11) 26. Qd2 $16 {[%emt 0:01:21]} c5 {[%emt 0:00:00]} 27. b5 {[%emt 0:00:14]} Nb6 {[%emt 0:00:00]} 28. O-O {[%emt 0:00:09]} Ra8 {[%emt 0:00:00]} 29. Ra1 {[%emt 0:01:02]} Qa3 {[%emt 0:00:00]} 30. Rfc1 {[%emt 0:02:31]} Ra7 {[%emt 0:00:00]} 31. Rc3 {[%emt 0:01:21]} Qb4 {[%emt 0:00:00]} 32. a3 {[%emt 0:00:35]} Qa5 {[%emt 0:00:00]} 33. Qe3 {[%emt 0:03:08]} Nd7 {[%emt 0:02:59]} 34. Bf1 {[%emt 0:01:16]} Qd8 {[%emt 0:04:46]} 35. g3 {[%emt 0:00:56]} Nb6 {[%emt 0:01:00]} 36. Bh3 {[%emt 0:02:09]} Ra4 $2 {[%emt 0:00:31]} (36... Kg7 $16 {keeps fighting.} 37. Be6 Rf6) 37. Be6+ $18 {[%emt 0:06:22]} Kg7 {[%emt 0:00:01]} 38. f4 $1 {[%emt 0:00:07]} Rf6 {[%emt 0:00:25]} 39. f5 {[%emt 0:00:06]} Rxe6 {[%emt 0:01:24]} 40. fxe6 {[%emt 0:00:05]} Qc8 {[%emt 0:00:20]} 41. Rf1 {[%emt 0:31:53]} Qxe6 {[%emt 0:30:08]} 42. Qf2 {[%emt 0:00:13]} Nd7 {[%emt 0:00:00]} 43. b6 {[%emt 0:00:00]} Ra8 {[%emt 0:00:00]} 44. b7 {[%emt 0:00:00]} Rb8 {[%emt 0:00:00]} 45. Qb2 {[%emt 0:00:00]} Nf6 {[%emt 0:00:00]} 46. a4 {[%emt 0:00:00]} Qd7 {[%emt 0:00:00]} 47. Rb3 {[%emt 0:00:00]} Qxa4 {[%emt 0:00:00] [#]} 48. Ra1 $1 {[%emt 0:00:00]} ({Avoid the trap} 48. Qc2 $2 Rxb7 49. Rc3 Qxc2 50. Rxc2 Nxe4 $19) 48... Qc6 {[%emt 0:00:00] [#]} 49. Qb1 $1 {[%emt 0:00:00]} Nd7 {[%emt 0:00:00]} 50. Ra2 {[%emt 0:00:00]} h5 {[%emt 0:00:00]} 51. h3 {[%emt 0:00:00]} Kf7 {[%emt 0:00:00]} 52. Ra7 {[%emt 0:01:52]} Kg7 {[%emt 0:02:53]} 53. Kg2 {[%emt 0:09:21]} Kf7 {[%emt 0:01:22]} 54. Rba3 {[%emt 0:00:39]} Kg7 $2 {[%emt 0:01:44]} (54... Rh8 55. R7a6 Qc7) 55. R3a6 $18 {[%emt 0:00:44]} Qc7 {[%emt 0:00:01]} 56. Qb5 {[%emt 0:00:13]} Qd8 {[%emt 0:02:22]} 57. Ra8 {[%emt 0:01:58]} Qc7 {[%emt 0:00:25]} 58. Rxb8 {[%emt 0:00:26]} Nxb8 {[%emt 0:00:02]} 59. Ra8 {[%emt 0:00:28]} h4 {[%emt 0:00:22]} 60. gxh4 {[%emt 0:00:28]} (60. Rxb8 $142 Qxb8 61. Qd7 (61. gxh4 Kf6 $18)) 60... e6 {[%emt 0:00:10]} 61. Rxb8 {[%emt 0:00:42]} Qxb8 {[%emt 0:00:31]} 62. Qd7+ {[%emt 0:00:05]} Kh6 {[%emt 0:00:10]} 63. Qc8 {[%emt 0:00:06]} ({Inferior is} 63. Qxe6 Qxb7 64. Qg4 Qb2+ 65. Kg3 Qc1 $11) 1-0

[Event "BL 2024-25"]
[Site "Austria"]
[Date "2024.10.10"]
[Round "2.5"]
[White "Schnider, Gert"]
[Black "Balint, Peter"]
[Result "1/2-1/2"]
[Annotator "TA"]
[ECO "C76"]
[WhiteElo "2362"]
[BlackElo "2375"]
[PlyCount "65"]
[EventDate "2024.08.28"]
[EventType "team-tourn"]
[EventCountry "AUT"]
[SourceTitle "playchess.com"]
[Source "ChessBase"]
[SourceQuality "1"]
[WhiteTeam "Frauental"]
[BlackTeam "Ottakring"]
[TimeControl "40/5400+30:1800+30"]

{[%evp 17,65,36,42,43,46,35,38,22,36,20,37,39,26,30,23,-13,-16,-28,-20,-20,-14,-23,0,0,14,-55,-65,-95,-97,-85,-105,-82,-14,-13,-22,-25,0,-12,-8,-1,-8,-7,0,-22,0,0,0,0,0,0]} 1. e4 {[%emt 0:00:02]} e5 {[%emt 0:00:14]} 2. Nf3 {[%emt 0:00:04]} Nc6 {[%emt 0:00:03]} 3. Bb5 {[%emt 0:00:05]} a6 {[%emt 0:00:03]} 4. Ba4 {[%emt 0:00:05]} d6 {[%emt 0:00:10]} 5. O-O {[%emt 0:00:55]} Bd7 {[%emt 0:00:15]} 6. c3 {[%emt 0:01:01]} g6 {[%emt 0:00:09]} 7. d4 {[%emt 0:00:40]} Bg7 {[%emt 0:00:06]} 8. Re1 {[%emt 0:02:30]} Nge7 {[%emt 0:00:18]} 9. h3 {[%emt 0:00:35]} O-O {[%emt 0:00:13]} 10. Be3 {[%emt 0:00:50]} b6 {[%emt 0:01:43]} 11. Nbd2 {[%emt 0:07:31]} Qe8 {[%emt 0:05:00][%cal Oc6d4]} 12. dxe5 {[%emt 0:01:08] White is slightly better.} dxe5 {[%emt 0:05:45]} 13. Bc2 {[%emt 0:01:47]} h6 {[%emt 0:02:42]} 14. a4 {[%emt 0:06:17]} f5 {[%emt 0:05:51]} 15. exf5 {[%emt 0:03:39]} gxf5 {[%emt 0:01:00]} 16. Nf1 {[%emt 0:01:40][%cal Oa4a5]} Be6 {[%emt 0:11:19]} 17. Bb3 {[%emt 0:10:06]} Qf7 {[%emt 0:01:11]} 18. Bxe6 {[%emt 0:00:24]} Qxe6 {[%emt 0:00:06]} 19. Qe2 {[%emt 0:03:08]} Ng6 {[%emt 0:05:44]} 20. Rad1 {[%emt 0:02:10]} a5 {[%emt 0:07:44]} 21. Qb5 {[%emt 0:08:23]} (21. Bc1 $11) 21... Rad8 $15 {[%emt 0:01:45]} 22. Bc1 {[%emt 0:03:23]} e4 {[%emt 0:03:26]} 23. Rxd8 {[%emt 0:09:44]} Rxd8 {[%emt 0:00:49]} 24. Ng3 {[%emt 0:03:25][%cal Bf1g3,Bg3h5,Bh5f4][%mdl 32] [#]} Nge5 {[%emt 0:09:19]} (24... Rd5 $1 $17 {[%cal Rd5b5]} 25. Qe2 Qd7) 25. Nxe5 $11 {[%emt 0:03:21]} Nxe5 {[%emt 0:03:52]} 26. Nh5 {[%emt 0:01:05]} ({Not} 26. Bf4 $2 Nd3 27. Nxf5 (27. Qxf5 $2 {loses.} Qxf5 28. Nxf5 Nxe1 $19) (27. Bxc7 $2 {is the wrong capture.} Rd5 $19) 27... Nxe1 $19 (27... Nxf4 $2 28. Ng3 $19)) 26... Bh8 {[%emt 0:10:43]} 27. Nf4 {[%emt 0:06:00] The position is equal.} Qc4 {[%emt 0:02:25]} 28. Qxc4+ {[%emt 0:05:59]} Nxc4 {[%emt 0:00:07]} 29. Kf1 {[%emt 0:01:19]} Be5 {[%emt 0:02:53][%cal Oc4b2]} 30. g4 {[%emt 0:02:06]} fxg4 {[%emt 0:03:18]} 31. hxg4 {[%emt 0:00:01]} Nd2+ {[%emt 0:02:24]} 32. Bxd2 {[%emt 0:00:17]} Rxd2 {[%emt 0:00:04]} 33. Rxe4 {[%emt 0:01:33] Weighted Error Value: White=0.12 (very precise) /Black=0.12 (very precise) .  Mistake:       	White=1     	Black=1      Inaccurate:     	White=2     	---        OK:         	White=8     	Black=5      Best:        	White=2     	Black=1} 1/2-1/2